Cogmind - Beta 9.6 @@@ ROGUE MODE // 2020.04.23 @ 16:25:33 Player: TravelDemon Result: Destroyed by G-34 Mercenary with Small Laser Performance ------------- Evolutions (0) 0 Regions Visited (2) 400 Robots Destroyed (10) 50 Value Destroyed (250) 250 Prototype IDs (0) 0 Alien Tech Used (0) 0 Bonus (0) 0 TOTAL SCORE: 700 Bonus ------- None Cogmind --------- Core Integrity 0/250 Matter 290/300 Energy 250/250 System Corruption 3% Temperature Cool (6) Movement Flying (120) Ox1 Location -10/Mines Parts ------- > --- POWER (1) -------- Ion Engine > --- PROPULSION (2) --- VTOL Module > --- UTILITY (2) ------ Small Storage Unit > --- WEAPON (2) ------- (None) > --- INVENTORY (6) ---- Medium Storage Unit Faulty Experimental Sensor Array Improved Light Cannon Improved Light Cannon Peak State ------------ > --- POWER ------------ Ion Engine > --- PROPULSION ------- VTOL Module VTOL Module > --- UTILITY ---------- Small Storage Unit Medium Storage Unit > --- WEAPON ----------- Assault Rifle Grenade Launcher > --- INVENTORY -------- Aluminum Leg Aluminum Leg Medium Matter Pod Light Assault Rifle [Rating: 9] Favorites ----------- Power Ion Engine Engine Ion Engine Propulsion VTOL Module Leg Aluminum Leg Flight Unit VTOL Module Utility Small Storage Unit Storage Small Storage Unit Weapon Mining Laser Energy Gun Medium Laser Ballistic Gun Assault Rifle Ballistic Cannon Improved Light Cannon Launcher Grenade Launcher Special Weapon Mining Laser Build | -11 -10 -10 ------- Run | Scr Mat Min Slots Evolved . | . . . Power . | . . . Propulsion . | . . . Utility . | . . . Weapon . | . . . Parts Attached 18 | 5 5 8 Power 2 | 1 . 1 Engine 2 | 1 . 1 Core . | . . . Reactor . | . . . Propulsion 6 | 2 2 2 Treads . | . . . Leg 2 | 2 . . Wheel . | . . . Hover . | . . . Flight 4 | . 2 2 Utility 2 | 1 1 . Device . | . . . Storage 2 | 1 1 . Processor . | . . . Hackware . | . . . Protection . | . . . Artifact . | . . . Weapon 8 | 1 2 5 Energy Gun 1 | 1 . . Energy Cannon . | . . . Ballistic Gun 1 | . 1 . Ballistic Cannon 4 | . . 4 Launcher 1 | . 1 . Special Weapon 1 | . . 1 Impact Weapon . | . . . Slashing Weapon . | . . . Piercing Weapon . | . . . Special Melee Weapon . | . . . Unidentified Prototypes . | . . . Parts Lost 6 | . 1 5 Power 1 | . . 1 Propulsion 3 | . . 3 Utility . | . . . Weapon 2 | . 1 1 Highest Loss Streak 2 | . 1 2 Average Slot Usage (%) 61 | . 77 51 Engine 13 | . 14 13 Leg 8 | . 20 . Flight 13 | . 6 17 Storage 16 | . 21 14 Energy Gun 2 | . 6 . Launcher 2 | . 6 . Special Weapon 3 | . . 5 Naked Turns . | . . . Heaviest Build 22 | 11 22 10 Greatest Support 20 | 20 20 10 Greatest Overweight (x) 6 | 3 6 2 Average Overweight (x) . | 1 . . Largest Inventory Capacity 10 | 6 10 6 Average Capacity 6 | 5 8 6 Most Carried 8 | 4 8 6 Average Carried 4 | 2 4 4 Final Capacity 6 | 6 6 6 Final Carried 6 | 4 6 4 Class Distribution -------------------- 100% | Mutant Dominant Class ---------------- Mutant | -10/Materials Mutant | -10/Mines Resources | -11 -10 -10 ----------- Run | Scr Mat Min Matter Collected 592 | 186 239 167 Remotely . | . . . Salvage Created 187 | . 99 88 Parts 11 | . 6 5 Haulers Intercepted . | . . . Recyclers Shooed 1 | . 1 . Parts Field Recycled . | . . . Retrieved Matter . | . . . Parts Self-Destructed . | . . . Prevented . | . . . Kills | -11 -10 -10 ------- Run | Scr Mat Min Combat Hostiles Destroyed 8 | . 6 2 Guns 1 | . 1 . Cannons 2 | . . 2 AOE 5 | . 5 . Classes Destroyed 3 | . 2 1 Tunneler 2 | . . 2 Swarmer 3 | . 3 . Grunt 5 | . 3 2 Best Kill Streak 5 | . 5 3 Combat Bots Only 5 | . 5 2 Max Kills in Single Turn 2 | . 2 1 Gunslinging . | . . . Exploded 2 | . 2 . Melee . | . . . Uniques/NPCs Destroyed . | . . . Combat | -11 -10 -10 -------- Run | Scr Mat Min Damage Taken 792 | . 322 470 Core 256 | . 83 173 Absorbed by Shields . | . . . Core Remaining (%) 100 | 100 . . Volleys Fired 42 | . 19 23 Largest 2 | . 1 2 Hottest 100 | . 30 100 Shots Fired 48 | . 19 29 Gun 13 | . 13 . Cannon 12 | . . 12 Launcher 6 | . 6 . Special 17 | . . 17 Kinetic 25 | . 13 12 Thermal 17 | . . 17 Explosive 6 | . 6 . Electromagnetic . | . . . Robot Hit Streak 10 | . 10 5 Robot Miss Streak 2 | . 2 2 Penetration Max . | . . . Secondary Targets . | . . . Shots Hit Robots 22 | . 14 8 Core Hits 21 | . 15 6 Critical Hits 1 | . 1 . Critical Kills . | . . . Critical Parts Destroyed 1 | . 1 . Melee Attacks . | . . . Impact . | . . . Slashing . | . . . Piercing . | . . . Sneak Attacks . | . . . Combat Hostiles . | . . . Follow-up Attacks . | . . . Damage Inflicted 724 | . 541 183 Guns 138 | . 138 . Cannons 180 | . . 180 Explosions 403 | . 403 . Melee . | . . . Ramming 3 | . . 3 Kinetic 318 | . 138 180 Thermal . | . . . Explosive 403 | . 403 . Electromagnetic . | . . . Impact . | . . . Slashing . | . . . Piercing . | . . . Highest Corruption 3 | . . 3 Average Corruption 3 | . . 3 Corruption Purged . | . . . Effects 3 | . . 3 Message Errors 2 | . . 2 Energy Discharges 1 | . . 1 Overload Shots . | . . . Overflow Damage . | . . . Projectiles . | . . . Explosions . | . . . Melee . | . . . Knockbacks . | . . . Impact . | . . . Kinetic . | . . . Secondary . | . . . Self-Inflicted Damage 45 | . 44 1 Shots 2 | . 2 . Rammed 2 | . . 2 Targets Rammed 2 | . . 2 Kicked . | . . . Crushed . | . . . Highest Temperature 138 | . 1 138 Average Temperature 38 | . 1 40 Received Heat Transfer 297 | . 84 213 Siege Activations . | . . . Robots Corrupted . | . . . Combat Hostiles . | . . . Parts Fried . | . . . Impact Corruptions . | . . . Robots Melted . | . . . Combat Hostiles . | . . . Parts Melted . | . . . Heat Transferred . | . . . Parts Sabotaged . | . . . Parts Stolen . | . . . Parts Stripped . | . . . Power Chain Reactions . | . . . Missiles Intercepted . | . . . Alert | -11 -10 -10 ------- Run | Scr Mat Min Peak Influence 160 | . 160 55 Average Influence 28 | . 61 10 Maximum Alert Level . | . . . Low Security (%) 100 | 100 100 100 Level 1 . | . . . Level 2 . | . . . Level 3 . | . . . Level 4 . | . . . Level 5 . | . . . High Security . | . . . Max Security . | . . . Squads Dispatched . | . . . Investigation . | . . . Extermination . | . . . Reinforcement . | . . . Assault . | . . . Garrison . | . . . Intercept . | . . . Construction Impeded . | . . . Haulers Reinforced . | . . . Stealth | -11 -10 -10 --------- Run | Scr Mat Min Distress Signals 3 | . . 3 Communications Jammed . | . . . Distress Signals . | . . . Times Spotted 27 | . 11 16 Peak Tracking Total 6 | . 6 4 Tactical Retreats 8 | . 2 6 Traps | -11 -10 -10 ------- Run | Scr Mat Min Traps Triggered . | . . . Indirectly . | . . . Trap Hack Attempts . | . . . Triggered . | . . . Disarmed . | . . . Reprogrammed . | . . . Reused . | . . . Traps Extracted . | . . . Installed . | . . . Triggered . | . . . Machines | -11 -10 -10 ---------- Run | Scr Mat Min Machines Disabled 1 | . . 1 Max in Single Turn 1 | . . 1 Machines Sabotaged . | . . . Garrisons Compromised . | . . . Overloaded Fab Kills . | . . . Fab Network Shutdowns . | . . . Hacking | -11 -10 -10 --------- Run | Scr Mat Min Machines Accessed 2 | . 2 . Terminals 1 | . 1 . Fabricators . | . . . Repair Stations . | . . . Recycling Units 1 | . 1 . Scanalyzers . | . . . Garrison Access . | . . . Total Hacks 2 | . 2 . Successful 2 | . 2 . Failed . | . . . Catastrophic . | . . . Database Lockouts . | . . . Manual . | . . . Terminals 1 | . 1 . Fabricators . | . . . Repair Stations . | . . . Recycling Units 1 | . 1 . Scanalyzers . | . . . Garrison Access . | . . . Terminal Hacks 1 | . 1 . Robot Analysis 1 | . 1 . Fabricator Hacks . | . . . Repair Station Hacks . | . . . Recycling Unit Hacks 1 | . 1 . Report Inventory 1 | . 1 . Scanalyzer . | . . . Garrison Access Hacks . | . . . Unauthorized Hacks . | . . . Terminals . | . . . Fabricators . | . . . Repair Stations . | . . . Recycling Units . | . . . Scanalyzers . | . . . Garrison Access . | . . . Data Cores Recovered . | . . . Used . | . . . Hacking Detections 1 | . 1 . Full Trace Events . | . . . Feedback Events . | . . . Feedback Blocked . | . . . Robot Schematics Acquired . | . . . Robots Built . | . . . Matter . | . . . Time . | . . . Total Robot Build Rating . | . . . Part Schematics Acquired . | . . . Parts Built . | . . . Matter . | . . . Time . | . . . Total Part Build Rating . | . . . Parts Repaired . | . . . Time . | . . . Parts Recycled . | . . . Recycled Matter . | . . . Retrieved Matter . | . . . Retrieved Components . | . . . Parts Scanalyzed . | . . . Part Schematics Acquired . | . . . Parts Damaged . | . . . Bothacking | -11 -10 -10 ------------ Run | Scr Mat Min Used RIF Installer . | . . . Robots Hacked . | . . . Non-combat . | . . . Combat . | . . . Robot Hacks Applied . | . . . Relay Couplers Released . | . . . Robots Rewired . | . . . Allies Hacked . | . . . Hacks Repelled . | . . . Allies | -11 -10 -10 -------- Run | Scr Mat Min Total Allies . | . . . Largest Group . | . . . Highest-Rated Group . | . . . Highest-Rated Ally . | . . . Total Orders . | . . . Ally Attacks . | . . . Total Damage . | . . . Kills . | . . . Allies Corrupted . | . . . Allies Melted . | . . . Intel | -11 -10 -10 ------- Run | Scr Mat Min Robot Analysis Total 1 | . 1 . Derelict Logs Recovered 2 | . . 2 Drone Launches . | . . . Drone Recoveries . | . . . Exploration | -11 -10 -10 ------------- Run | Scr Mat Min Turns Passed 1210 | 65 449 696 Spaces Moved 1288 | 36 449 803 Core 37 | 35 1 1 Treads . | . . . Legs 262 | 1 261 . Wheels . | . . . Hover . | . . . Flight 989 | . 187 802 Fastest Speed 37 | 50 37 37 Average Speed 76 | 150 87 67 Slowest Speed 350 | 200 350 150 Overloaded Moves . | . . . Propulsion Burnouts . | . . . Robots Hopped 10 | . 2 8 Cave-ins Triggered 1 | . . 1 Exploration Rate (%) 60 | 4 80 98 Regions Visited 2 Branch Regions 1 Pre-discovered Areas 2 | . . 2 Known Exits Taken . | . . . Unknown Exits Taken 2 | 1 1 . Scrap Searched . | . . . Spaces Dug 11 | . . 11 Terrain Destroyed 30 | . 16 14 Melee . | . . . Projectile 14 | . . 14 AOE 16 | . 16 . Actions | -11 -10 -10 --------- Run | Scr Mat Min Total 1418 | 44 489 885 Wait 51 | . . 51 Move 1265 | 35 444 786 Hop 10 | . 2 8 Pick Up 14 | 4 8 2 Fast Attach 8 | 5 2 1 Attach 9 | . 3 6 Detach 6 | . 3 3 Swap 1 | . . 1 Drop 9 | . 8 1 Fire 42 | . 19 23 Melee . | . . . Ram 2 | . . 2 Kick . | . . . Crush . | . . . Escape Stasis 1 | . . 1 Rewire . | . . . Trap . | . . . Miscellaneous . | . . . Route ------- -11/Scrapyard -10/Materials (discovered 4 exits: [*Mat x3] / [*Min]) -10/Mines (discovered 2 exits: [*Mat x2]) History --------- Turn | Location | Event 4 | -11/Scrapyard | Discovered new exit (range 15) 66 | -11/Scrapyard | Entered Materials 258 | -10/Materials | Discovered new exit (range 16) 304 | -10/Materials | Build established: Mutant 461 | -10/Materials | Discovered new exit (range 13) 476 | -10/Materials | Discovered new exit (range 15) 512 | -10/Materials | Discovered new exit (range 6) 515 | -10/Materials | Entered Mines 523 | -10/Mines | Found a damaged Exp. Sensor Array with a note attached 525 | -10/Mines | Found Prototype Device 534 | -10/Mines | Assembled infested the area 586 | -10/Mines | Learned location of Storage (-7) 593 | -10/Mines | Discovered new exit (range 5) 626 | -10/Mines | Discovered new exit (range 9) 639 | -10/Mines | Learned 8 Materials zone layouts 666 | -10/Mines | Core integrity fell below 50% 729 | -10/Mines | Core integrity fell below 20% 1070 | -10/Mines | Crushed by falling debris 1211 | -10/Mines | Destroyed by G-34 Mercenary with Small Laser Last Messages --------------- 00939_ K-01 Serf collects debris. 00992_ Acquired 12 matter. 01029_ U-05 Engineer forms the Earth. 01053_ The unstable cave ceiling collapses. 01070_ Crushed by falling debris. 01070_ Ion Engine destroyed. 01070_ System corrupted by crushing effect (+3). 01077_ The unstable cave ceiling collapses. 01088_ System corrupted: Energy discharge (-2). 01096_ U-05 Engineer builds a Wall. 01103_ K-01 Serf collects debris. 01106_ LMRCRYI Y& K7GVDCNBCEYL: 01106_ K-01 Serf collects debris. 01125_ Acquired Ion Engine. 01125_ U-05 Engineer forms the Earth. 01129_ K-01 Serf collects debris. 01169_ S%KBD| C JBYE:BPVCKB0FPO1RMFFQ/5T J0D 01205_ K-01 Serf collects debris. 01209_ Mining Laser destroyed. 01211_ Seismic Survey Station disabled. Map ----- +----------------------------------------------------+ | ???# # # #????????????????????????### ######### | | ???### # ###?????????????????????## ##?###### | | ????# #?????????????????????# ### # | | ???## #?????????????????????# | | ???## #?????????????????????## | | ???# % ##??????????????????????### ### | | ???# % #####?#######??????????????## ##??# | | ???## # *% #? #???????????????# #????# | | ???# #! #? #??????????####### #????? | | #### "### ## #?????????## ### #????? | | %[! # < #?????????# #????? | | =%=% % #?????????# ## #????? | | ###### %% ### ###?????????## ## #????? | | ?????## #???#????####????## # #????? | | ??????### #### #?? #???## ##????# #????? | | ????????## #??#=###%*#???# ##??## ####????? | | ?####????####??#%!% [ #???# #### #???????? | | ## ##?????????##%#####???# ## ##???????? | | # ##?????????#=#????????# ##????????? | | # #?????????# #??######## ##????????? | | ?# #?????????# #??# ##???????? | | ??# #?????##### #??# ###### #???????? | | ### #?????# % #### ####### #???????? | | ##?????# ##### k #?# ## ##???????? | | ######??????#*#???# """g g #?# #### #????????? | | #?????#######%#???# """ @ #?# #??# #????????? | | #?????# #???# "" #?# ##??#!###??????? | | #?????# #######???# #?# ###??## ##?????? | | #?????# #?????????# #?# ###### ##????? | | ##????# #?????????# #?# #????? | | ###### #?????????# #?# ##???? | | #?????????##########?########### #???? | | ########??????????????????????????????## #???? | | ##??????????????????????????????????????## ##???? | | #?????????????????????????????????????????###????? | | ?????????????????????????????????????????????????? | | ?????????????????????????????????????????????????? | | ?????????????????????????????????????????????????? | | | | | | | | | | | | | | | | | | | | | | | | | +----------------------------------------------------+ Best States ------------- Heat Dissipation 25 Energy Generation 10 Energy Capacity 250 Matter Stores 300 Matter Capacity 300 Sight Range 16 Terrain Scan Density 10 Evasion (%) 62 Item Schematics ----------------- None Robot Schematics ------------------ None Fabricated ------------ Nothing Alien Tech Used ----------------- None Achievements -------------- None Challenges ------------ None Game ------ Seed DecoderGravityDriver Manual? 0 Play Time 00:18:10 Cumulative 21.2 hours Start 2020.04.23 @ 16:13:28 End 2020.04.23 @ 16:25:33 Sessions 1 Manual Loads 0 Difficulty Rogue Special Mode None Game No. 34 Rogue 34 Adventurer 0 Explorer 0 Win Type - Total 0 Types 0/0/0/0/0/0/0 Lore% 23 Gallery% 29 Achievement% 24 Wizard Run 0 Options --------- ASCII 0 Keyboard 1 Movement Numpad Keybinds 0 Fullscreen 1 Font 18/SmallcapsGlow Map View 76x50 Tactical HUD 1 Map Filters NONE Filters NONE Steam 1 RUN: d6083c57-30f1-4867-ba17-47edee56775b